bitfinex-derivatives/quotes_SOLF0:USTF0_20250325
["timestamp","ask_amount","ask_price","bid_price","bid_amount"]
[1742889497647,7.1703,139.46,139.45,7.1708]
[1742889497947,7.22149991,139.47,139.45,7.1708]
[1742889499347,0.05159991,139.47,139.46,7.1703]
[1742889500644,0.05159991,139.47,139.45,7.1705]
[1742889501246,7.22169991,139.47,139.45,7.1705]
[1742889502139,7.22169991,139.47,139.44,32.6015954]
[1742889502340,7.1703,139.46,139.44,32.6015954]
[1742889502746,0.05159991,139.47,139.45,7.1708]
[1742889502952,7.22159991,139.47,139.45,7.1708]
[1742889503752,7.1703,139.46,139.44,32.6015954]
[1742889505550,7.1708,139.45,139.44,25.4304954]
[1742889506146,7.1708,139.45,139.44,0.0504954]
[1742889509852,7.1704,139.46,139.44,0.0504954]
[1742889510356,7.1704,139.46,139.44,7.2215954]
[1742889531071,7.1708,139.45,139.44,0.0504954]
[1742889543995,7.1708,139.45,139.44,7.2217954]
[1742889544795,7.1708,139.45,139.44,0.0504954]
[1742889546393,7.1708,139.45,139.44,7.2217954]
[1742889546997,7.1708,139.45,139.44,0.0504954]
[1742889548099,7.1705,139.46,139.44,0.0504954]
[1742889548798,7.1705,139.46,139.44,7.2215954]
[1742889555803,7.1708,139.45,139.44,7.2215954]
[1742889556103,7.1708,139.45,139.44,0.0504954]
[1742889566514,7.1708,139.45,139.44,7.2217954]
[1742889567314,7.1706,139.46,139.44,7.2217954]
[1742889567818,62.05159991,139.47,139.45,7.1708]
[1742889568012,69.22179991,139.47,139.45,7.1708]
[1742889568313,62.05159991,139.47,139.44,0.0504954]
[1742889569514,7.1703,139.46,139.45,7.1708]
[1742889570114,7.1703,139.46,139.44,7.2215954]
[1742889574108,69.1703,139.46,139.44,7.2215954]
[1742889576716,7.1703,139.46,139.44,7.2215954]
[1742889579822,69.1703,139.46,139.44,7.2215954]
[1742889580323,7.1708,139.45,139.44,7.2215954]
[1742889580522,7.1708,139.45,139.44,0.0504954]
[1742889586430,69.1706,139.46,139.44,7.2217954]
[1742889590629,0.05159991,139.47,139.44,0.0504954]
[1742889591028,0.05159991,139.47,139.46,7.1703]
[1742889591931,0.05159991,139.47,139.44,25.4104954]
[1742889592237,7.1708,139.45,139.44,25.4104954]
[1742889592830,0.05159991,139.47,139.44,25.4104954]
[1742889593035,7.1708,139.46,139.44,25.4104954]
[1742889593635,69.1708,139.46,139.44,25.4104954]
[1742889593837,69.1708,139.46,139.44,32.5817954]
[1742889594034,7.22169991,139.47,139.44,25.4104954]
[1742889594233,0.05159991,139.47,139.44,25.4104954]
[1742889594637,0.05159991,139.47,139.46,7.1703]
[1742889596237,7.22149991,139.47,139.45,7.1706]
[1742889596837,0.05159991,139.47,139.45,7.1708]
[1742889597428,0.05159991,139.47,139.46,7.1703]
[1742889600847,0.05159991,139.47,139.45,7.1706]
[1742889601049,7.22139991,139.47,139.45,7.1706]
[1742889601742,0.05159991,139.47,139.45,7.1706]
[1742889603547,7.22149991,139.47,139.45,7.1706]
[1742889604950,7.22149991,139.47,139.44,25.4104954]
[1742889604951,7.1703,139.46,139.44,32.5816954]
[1742889605150,7.1703,139.46,139.44,25.4104954]
[1742889605648,0.05159991,139.47,139.44,25.4104954]
[1742889606350,0.05159991,139.47,139.44,0.0504954]
[1742889606651,7.1708,139.45,139.44,0.0504954]
[1742889608849,0.05159991,139.47,139.44,0.0504954]
[1742889609048,0.05159991,139.47,139.44,25.4104954]
[1742889609450,0.05159991,139.47,139.46,7.1703]
[1742889615451,0.05159991,139.47,139.45,7.1706]
[1742889615647,7.22169991,139.47,139.45,7.1706]
[1742889615851,7.22169991,139.47,139.44,25.4104954]
[1742889616655,7.1703,139.46,139.44,25.4104954]
[1742889616849,0.05159991,139.47,139.44,25.4104954]
[1742889617450,7.1703,139.46,139.44,0.0504954]
[1742889617858,0.05159991,139.47,139.44,0.0504954]
[1742889618055,7.1707,139.46,139.44,0.0504954]
[1742889618356,0.05159991,139.47,139.44,0.0504954]
[1742889618564,7.22179991,139.47,139.45,7.1705]
[1742889618760,0.05159991,139.47,139.44,0.0504954]
[1742889618954,0.05159991,139.47,139.46,7.1703]
[1742889625657,0.05159991,139.47,139.46,32.5303]
[1742889631360,9.991e-05,139.47,139.46,32.5303]
[1742889632667,62.0,139.51,139.5,7.1683]
[1742889632863,7.167,139.53,139.49,25.34]
[1742889633567,7.167,139.53,139.51,7.1675]
[1742889633967,7.21747511,139.53,139.51,7.22119599]
[1742889634262,0.05047511,139.53,139.51,7.22119599]
[1742889634564,0.05047511,139.53,139.51,0.05369599]
[1742889634866,7.21727511,139.53,139.51,7.22119599]
[1742889635867,62.0,139.52,139.51,7.22119599]
[1742889637066,0.05047511,139.53,139.51,7.22119599]
[1742889637767,0.05047511,139.53,139.52,7.1672]
[1742889641271,0.05047511,139.53,139.52,32.5072]
[1742889646872,0.05047511,139.53,139.52,25.34]
[1742889648177,0.05047511,139.53,139.52,32.5072]
[1742889648476,7.21717511,139.53,139.52,25.34]
[1742889648975,0.05047511,139.53,139.52,25.34]
[1742889649375,0.05047511,139.53,139.52,32.5072]
[1742889663787,93.73387827,139.66,139.52,32.5]
[1742889663981,93.73387827,139.66,139.53,10.61453253]
[1742889663982,1.9699,139.64,139.53,10.61453253]
[1742889664182,1.9699,139.64,139.55,8.70343253]
[1742889664383,1.9699,139.64,139.59,7.1634]
[1742889664590,1.9699,139.64,139.59,32.5034]
[1742889664990,0.05189554,139.63,139.6,7.21519461]
[1742889665190,0.05189554,139.63,139.6,0.05219461]
[1742889665389,7.21389554,139.63,139.6,0.05219461]
[1742889665891,7.1622,139.62,139.6,0.05219461]
[1742889666295,0.05189554,139.63,139.6,0.05219461]
[1742889666585,7.21389554,139.63,139.6,0.05219461]
[1742889666790,62.0,139.62,139.6,0.05219461]
[1742889667193,69.1621,139.62,139.6,0.05219461]
[1742889668392,62.0,139.62,139.6,0.05219461]
[1742889669198,0.05189554,139.63,139.6,0.05219461]
[1742889669393,0.05189554,139.63,139.6,8.75562714]
[1742889669692,0.05189554,139.63,139.6,0.05219461]
[1742889669890,0.05189554,139.63,139.62,7.1621]
[1742889670094,0.05189554,139.63,139.62,32.4821]
[1742889671298,1.9573,139.71,139.62,25.32]
[1742889671488,7.1589,139.69,139.62,25.32]
[1742889671890,7.1589,139.69,139.64,7.1608]
[1742889672096,69.1591,139.68,139.65,25.32]
[1742889672290,62.0,139.68,139.65,25.32]
[1742889672496,62.05436419,139.68,139.65,25.36794457]
[1742889672896,7.16,139.67,139.65,25.36794457]
[1742889673298,62.05436419,139.68,139.65,25.36794457]
[1742889674094,69.21356419,139.68,139.65,25.36794457]
[1742889674594,62.05436419,139.68,139.65,25.36794457]
[1742889674794,62.05436419,139.68,139.65,32.52844457]
[1742889675499,62.05436419,139.68,139.66,7.1599]
[1742889676004,62.05436419,139.68,139.67,7.1595]
[1742889685604,62.05436419,139.68,139.66,7.1599]
[1742889686101,62.05436419,139.68,139.65,25.36794457]
[1742889686406,69.21366419,139.68,139.65,32.52844457]
[1742889687506,7.1597,139.67,139.65,32.52844457]
[1742889687703,7.1597,139.67,139.65,25.36794457]
[1742889689406,7.1597,139.67,139.65,32.52844457]
[1742889691708,69.21366419,139.68,139.65,32.52844457]
[1742889693106,69.21366419,139.68,139.66,7.1599]
[1742889694303,62.05436419,139.68,139.66,7.1599]
[1742889695909,69.21346419,139.68,139.66,7.1599]
[1742889696910,62.05436419,139.68,139.66,7.1599]
[1742889698615,62.05436419,139.68,139.67,7.1595]
[1742889699012,0.05436419,139.68,139.67,7.1595]
[1742889716126,0.05436419,139.68,139.66,7.1599]
[1742889716624,0.05436419,139.68,139.67,7.1595]
[1742889722022,1.9854,139.75,139.71,7.1575]
[1742889722629,1.9854,139.75,139.7,25.3]
[1742889722630,1.9854,139.75,139.72,7.1569]
[1742889722830,27.1827,139.77,139.7,25.3]
[1742889722831,1.8827,139.77,139.7,25.3]
[1742889723336,0.0454239,139.75,139.72,0.04825573]
[1742889723532,0.0454239,139.75,139.73,25.3]
[1742889723732,0.0454239,139.75,139.74,7.156]
[1742889727730,7.1535,139.79,139.76,7.1549]
[1742889727931,7.1535,139.79,139.77,25.3]
[1742889728132,7.1531,139.8,139.77,32.4542]
[1742889728337,1.8936,139.81,139.77,25.3]
[1742889728527,1.9699,139.83,139.77,25.3]
[1742889728731,7.1527,139.81,139.78,7.1536]
[1742889728934,7.20125398,139.81,139.79,0.04887164]
[1742889729130,0.04855398,139.81,139.8,25.3]
[1742889729839,29.78009185,139.84,139.8,34.00343253]
[1742889730041,29.78009185,139.84,139.8,37.97803253]
[1742889730341,29.78009185,139.84,139.82,7.1516]
[1742889730638,29.78009185,139.84,139.83,25.3]
[1742889730837,69.1501,139.86,139.83,25.3]
[1742889731029,0.04932688,139.85,139.83,25.3]
[1742889731233,0.04932688,139.85,139.82,0.04864326]
[1742889731940,7.1512,139.84,139.82,0.04864326]
[1742889732340,0.04932688,139.85,139.82,0.04864326]
[1742889733638,7.1511,139.84,139.82,0.04864326]
[1742889734644,7.19992688,139.85,139.82,0.04864326]
[1742889734843,7.19992688,139.85,139.83,25.28]
[1742889737654,0.04932688,139.85,139.83,32.4313]
[1742889738049,0.04932688,139.85,139.83,25.28]
[1742889738450,7.19972688,139.85,139.83,25.28]
[1742889739646,7.19972688,139.85,139.83,32.4313]
[1742889740053,0.04932688,139.85,139.83,32.4313]
[1742889741255,0.04932688,139.85,139.84,7.1508]
[1742889744361,7.1479,139.9,139.87,7.1492]
[1742889744559,7.1479,139.9,139.87,32.4292]
[1742889745057,62.0,139.89,139.88,7.1488]
[1742889746258,7.19626655,139.9,139.88,7.1488]
[1742889747059,0.04846655,139.9,139.88,7.1488]
[1742889747559,0.04846655,139.9,139.87,25.33427231]
[1742889747560,0.04846655,139.9,139.89,7.1483]
[1742889751957,3.9539,139.97,139.88,8.70343253]
[1742889752263,7.1449,139.96,139.88,8.70343253]
[1742889752561,3.9539,139.97,139.92,7.1464]
[1742889752759,7.1452,139.96,139.92,32.4064]
[1742889752961,3.9539,139.97,139.92,25.26]
[1742889753157,3.9539,139.97,139.93,0.05068719]
[1742889753359,7.1457,139.94,139.93,0.05068719]
[1742889754665,69.1457,139.94,139.93,0.05068719]
[1742889767872,0.90397987,139.99,139.93,25.31068719]
[1742889768478,7.1457,139.94,139.93,25.31068719]
[1742889768773,0.90397987,139.99,139.93,0.05068719]
[1742889768774,25.26,139.98,139.93,0.05068719]
[1742889768976,7.1457,139.94,139.93,0.05068719]
[1742889770779,69.1457,139.94,139.93,0.05068719]
[1742889789996,69.1457,139.94,139.93,8.719e-05]
[1742889790194,71.1562,139.94,139.93,8.719e-05]
[1742889790398,74.9565,139.94,139.93,8.719e-05]
[1742889792399,7.1495,139.87,139.85,9.0091]
[1742889792597,7.1495,139.87,139.86,25.26]
[1742889792898,7.1495,139.87,139.85,9.0091]
[1742889792899,7.1495,139.87,139.85,34.2691]
[1742889793696,7.20108979,139.87,139.85,34.31587762]
[1742889797102,7.1498,139.86,139.85,27.16587762]
[1742889797299,0.05158979,139.87,139.85,27.16587762]
[1742889797499,7.20108979,139.87,139.85,34.31587762]
[1742889798004,0.05158979,139.87,139.85,27.16587762]
[1742889798206,0.05158979,139.87,139.86,7.1498]
[1742889802008,7.20088979,139.87,139.85,34.31597762]
[1742889802312,0.05158979,139.87,139.85,0.04677762]
[1742889802706,7.1498,139.86,139.85,0.04677762]
[1742889804814,7.20108979,139.87,139.85,7.19707762]
[1742889807318,0.05158979,139.87,139.86,7.1498]
[1742889815918,67.8108,139.94,139.85,10.68061015]
[1742889816129,62.0,139.94,139.86,8.70343253]
[1742889816323,62.0,139.94,139.87,25.26]
[1742889816531,62.0,139.94,139.93,7.1462]
[1742889817034,62.0,139.94,139.92,7.20004604]
[1742889817635,69.1458,139.94,139.92,7.20004604]
[1742889819531,62.0,139.94,139.92,7.20004604]
[1742889820429,2.053,139.98,139.92,0.05344604]
[1742889821027,7.1444,139.97,139.94,7.1453]
[1742889821227,7.1444,139.97,139.94,32.4053]
[1742889821628,7.1444,139.97,139.94,25.26]
[1742889822029,7.144,139.98,139.94,25.26]
[1742889822231,0.90397987,139.99,139.94,25.26]
[1742889822635,0.90397987,139.99,139.95,0.04690034]
[1742889823135,7.1441,139.98,139.96,7.1445]
[1742889823530,62.0,139.97,139.96,7.1445]
[1742889823730,62.0,139.97,139.95,7.19180034]
[1742889824036,62.0,139.97,139.95,0.04690034]
[1742889825330,62.0,139.97,139.95,7.19170034]
[1742889827035,7.1441,139.98,139.95,7.19170034]
[1742889829037,0.90397987,139.99,139.95,0.04690034]
[1742889829433,0.90397987,139.99,139.97,7.1439]
[1742889829639,0.90397987,139.99,139.98,25.24]
[1742889830042,62.90397987,139.99,139.98,25.24]
[1742889831238,62.90397987,139.99,139.98,32.3837]
[1742889831648,62.90397987,139.99,139.98,25.24]
[1742889832742,70.04717987,139.99,139.98,25.24]
[1742889833041,62.90397987,139.99,139.98,25.24]
[1742889833640,62.90397987,139.99,139.98,32.3837]
[1742889833946,62.90397987,139.99,139.98,25.24]
[1742889834146,70.04717987,139.99,139.98,25.24]
[1742889836043,62.90397987,139.99,139.98,25.24]
[1742889836348,62.90397987,139.99,139.98,32.3837]
[1742889836741,62.90397987,139.99,139.98,7.1437]
[1742889837047,62.90397987,139.99,139.98,25.24]
[1742889837245,70.04717987,139.99,139.98,25.24]
[1742889837952,7.1446,139.97,139.95,25.28690034]
[1742889838446,7.1446,139.97,139.95,32.43210034]
[1742889841649,7.1446,139.97,139.95,25.28690034]
[1742889841845,7.1446,139.97,139.95,0.04690034]
[1742889842051,7.1446,139.97,139.95,25.28690034]
[1742889842250,7.1446,139.97,139.95,32.43210034]
[1742889842949,7.1447,139.96,139.95,25.28690034]
[1742889845253,7.1447,139.96,139.95,0.04690034]
[1742889862462,14.2887,139.97,139.87,17.51778994]
[1742889862655,1.9697,139.95,139.88,25.24]
[1742889862958,7.1481,139.9,139.88,7.1485]
[1742889863965,7.1483,139.89,139.88,0.05361323]
[1742889864862,7.19844949,139.9,139.88,0.05361323]
[1742889865964,7.19844949,139.9,139.88,7.20241323]
[1742889870060,0.05044949,139.9,139.89,7.1483]
[1742889875864,0.05044949,139.9,139.88,0.05361323]
[1742889876464,7.1483,139.89,139.88,0.05361323]
[1742889876669,0.05044949,139.9,139.88,0.05361323]
[1742889876871,0.05044949,139.9,139.89,32.3883]
[1742889881375,0.05044949,139.9,139.89,34.3113]
[1742889881574,4.949e-05,139.9,139.89,34.3113]
[1742889881774,4.949e-05,139.9,139.89,36.2837]
[1742889886384,7.145,139.96,139.94,7.1455]
[1742889887186,7.145,139.96,139.93,7.146]
[1742889887484,7.145,139.96,139.93,7.1939001]
[1742889887685,2.013,139.98,139.93,0.0479001]
[1742889889089,7.1457,139.94,139.93,0.0479001]
[1742889907198,69.1457,139.94,139.93,0.0479001]
[1742889917520,7.1475,139.91,139.89,32.388]
[1742889918522,7.19867662,139.91,139.89,32.43675509]
[1742889925933,0.05117662,139.91,139.9,7.1478]
[1742889929926,0.05117662,139.91,139.89,25.28875509]
[1742889931522,7.19877662,139.91,139.89,0.04875509]
[1742889933633,7.1478,139.9,139.89,0.04875509]
[1742889934133,7.19867662,139.91,139.89,0.04875509]
[1742889934527,0.05117662,139.91,139.89,0.04875509]
[1742889934724,7.1478,139.9,139.89,0.04875509]
[1742889938932,7.19867662,139.91,139.89,7.19695509]
[1742889942645,7.19867662,139.91,139.89,0.04875509]
[1742889943346,7.19867662,139.91,139.89,7.19695509]
[1742889943947,7.19867662,139.91,139.89,0.04875509]
[1742889944240,7.1478,139.9,139.89,0.04875509]
[1742889945448,7.19857662,139.91,139.89,0.04875509]
[1742889945650,0.05117662,139.91,139.89,0.04875509]
[1742889945948,7.1478,139.9,139.89,0.04875509]
[1742889947644,0.05117662,139.91,139.89,0.04875509]
[1742889948250,0.05117662,139.91,139.89,7.19675509]
[1742889948652,0.05117662,139.91,139.89,0.04875509]
[1742889949253,0.05117662,139.91,139.89,7.19675509]
[1742889950051,0.05117662,139.91,139.9,7.1478]
[1742889950249,7.19847662,139.91,139.89,0.04875509]
[1742889950553,0.05117662,139.91,139.89,0.04875509]
[1742889951147,7.1478,139.9,139.89,0.04875509]
[1742889957553,7.1494,139.87,139.85,7.1501]
[1742889957852,7.1494,139.87,139.83,25.24]
[1742889958254,7.1494,139.87,139.85,7.15]
[1742889958554,0.05193409,139.86,139.85,7.15]
[1742889959850,0.05193409,139.86,139.84,0.04667028]
[1742889960155,0.05193409,139.86,139.84,7.19727028]
[1742889960358,0.05193409,139.86,139.84,0.04667028]
[1742889960957,7.20173409,139.86,139.84,0.04667028]
[1742889962058,7.20173409,139.86,139.84,7.19727028]
[1742889964560,0.05193409,139.86,139.85,7.1503]
[1742889983266,62.0,139.94,139.85,7.16]
[1742889983574,7.1454,139.95,139.86,27.1628]
[1742889983971,83.31727827,139.98,139.94,7.1455]
[1742889984171,36.92449185,139.97,139.94,7.1455]
[1742889984367,29.78009185,139.97,139.92,32.3862]
[1742889984578,7.1449,139.96,139.94,0.04665542]
[1742889984771,29.82735696,139.97,139.94,0.04665542]
[1742889985171,36.97185696,139.97,139.94,7.19235542]
[1742889985369,29.82735696,139.97,139.94,7.19235542]
[1742889985571,0.04726511,139.97,139.95,32.385]
[1742889986571,0.04726511,139.97,139.96,7.1447]
[1742889987480,0.04726511,139.97,139.95,32.385]
[1742889990374,7.19156511,139.97,139.95,32.385]
[1742889992279,0.04726511,139.97,139.95,32.385]
[1742889992488,0.04726511,139.97,139.96,7.1447]
[1742889992777,0.04726511,139.97,139.95,25.24]
[1742889992983,0.04726511,139.97,139.95,32.385]
[1742889993282,7.19146511,139.97,139.95,32.385]
[1742889995381,0.04726511,139.97,139.96,7.1447]
[1742889999786,0.04726511,139.97,139.95,32.3849]
[1742889999982,0.04726511,139.97,139.94,0.04665542]
[1742890000687,7.1452,139.95,139.94,0.04665542]
[1742890001285,7.1476,139.91,139.86,3.9384]
[1742890001585,7.1476,139.91,139.88,32.3685]
[1742890001786,25.22,139.95,139.88,25.22]
[1742890001982,7.1486,139.89,139.86,7.1496]
[1742890002581,7.20003661,139.89,139.86,7.19694697]
[1742890002788,7.149,139.88,139.86,7.19694697]
[1742890002990,7.149,139.88,139.86,0.04734697]
[1742890003383,7.19993661,139.89,139.86,7.19684697]
[1742890003893,7.1488,139.88,139.86,7.19684697]
[1742890004093,0.05143661,139.89,139.86,7.19684697]
[1742890004591,7.19993661,139.89,139.86,7.19684697]
[1742890004792,69.19993661,139.89,139.86,7.19684697]
[1742890004989,62.05143661,139.89,139.87,7.1492]
[1742890005191,62.05143661,139.89,139.86,0.04734697]
[1742890005587,62.05143661,139.89,139.88,7.1488]
[1742890006286,0.05143661,139.89,139.88,7.1488]
[1742890007689,0.05143661,139.89,139.87,7.1491]
[1742890008486,0.05143661,139.89,139.88,7.1488]
[1742890008689,0.05143661,139.89,139.86,0.04734697]
[1742890009096,0.05143661,139.89,139.87,7.149]
[1742890009397,0.05143661,139.89,139.86,0.04734697]
[1742890009597,0.05143661,139.89,139.87,7.1488]
[1742890010791,0.05143661,139.89,139.88,7.1488]
[1742890015294,0.05143661,139.89,139.88,32.4088]
[1742890015701,7.146,139.94,139.88,25.26]
[1742890016895,0.0475714,139.92,139.91,7.1473]
[1742890017201,0.0475714,139.92,139.91,32.4673]
[1742890020802,0.0475714,139.92,139.9,7.19451239]
[1742890021207,7.1946714,139.92,139.9,0.04711239]
[1742890021499,69.1946714,139.92,139.9,0.04711239]
[1742890022203,7.1473,139.91,139.9,0.04711239]
[1742890022391,62.0475714,139.92,139.9,0.04711239]
[1742890023096,69.1945714,139.92,139.9,0.04711239]
[1742890023300,69.1945714,139.92,139.9,7.19491239]
[1742890023499,62.0475714,139.92,139.9,7.19491239]
[1742890024096,62.0475714,139.92,139.9,0.04711239]
[1742890024291,69.1945714,139.92,139.9,0.04711239]
[1742890024602,62.0475714,139.92,139.9,7.19451239]
[1742890025709,69.1945714,139.92,139.9,7.19451239]
[1742890026007,62.0475714,139.92,139.9,0.04711239]
[1742890026201,7.1473,139.91,139.9,0.04711239]
[1742890026599,62.0475714,139.92,139.87,7.1491]
[1742890027105,62.0,139.92,139.87,7.1491]
[1742890027306,63.8668,139.92,139.87,7.1491]
[1742890027599,7.1485,139.89,139.87,7.1491]
[1742890027806,7.1485,139.89,139.88,0.05054256]
[1742890030706,7.1498,139.86,139.82,1.9467]
[1742890030898,7.1498,139.86,139.82,27.3667]
[1742890031607,7.1498,139.86,139.83,7.1512]
[1742890031802,7.19891143,139.85,139.83,0.05362808]
[1742890032201,29.3671,139.9,139.83,7.20492808]
[1742890032399,7.1994723,139.85,139.83,0.05362808]
[1742890032601,7.1504,139.85,139.83,0.05362808]
[1742890032898,7.19956974,139.85,139.83,7.20482808]
[1742890033095,0.04916974,139.85,139.83,7.20482808]
[1742890035604,7.19986974,139.85,139.83,0.05362808]
[1742890035811,0.04916974,139.85,139.83,0.05362808]
[1742890036307,7.19976974,139.85,139.83,0.05362808]
[1742890036911,7.19976974,139.85,139.83,7.20492808]
[1742890037212,0.04916974,139.85,139.83,7.20492808]
[1742890038013,7.19956974,139.85,139.83,0.05362808]
[1742890039213,0.04916974,139.85,139.84,7.1508]
[1742890045223,0.04916974,139.85,139.84,32.5708]
[1742890045922,11.0949,139.9,139.84,25.42]
[1742890046124,63.8668,139.92,139.84,25.42]
[1742890046418,63.8668,139.92,139.85,1.8587]
[1742890046617,7.1474,139.91,139.85,1.8587]
[1742890047124,0.04952068,139.89,139.88,7.1486]
[1742890051516,2.0144,139.95,139.91,7.147]
[1742890051723,2.0144,139.95,139.87,25.50756075]
[1742890051923,1.9001,139.97,139.87,25.46]
[1742890052120,9.0446,139.97,139.94,7.1454]
[1742890052325,1.9001,139.97,139.92,25.52]
[1742890052625,2.83517987,139.99,139.92,25.52]
[1742890052816,0.04562425,139.96,139.95,7.1449]
[1742890053023,0.04562425,139.96,139.93,0.05079969]
[1742890054118,2.10162425,139.96,139.93,0.05079969]
[1742890054525,7.1457,139.94,139.93,0.05079969]
[1742890054824,62.0,139.95,139.89,25.56]
[1742890055027,1.966,139.94,139.89,25.56]
[1742890055528,29.5858,139.94,139.86,25.56]
[1742890055823,7.1478,139.9,139.89,0.04980656]
[1742890077851,7.19362181,139.91,139.89,7.19800656]
[1742890078444,7.19362181,139.91,139.89,0.04980656]
[1742890078850,7.1478,139.9,139.89,0.04980656]
[1742890079248,0.04612181,139.91,139.89,0.04980656]
[1742890079449,7.19362181,139.91,139.89,0.04980656]
[1742890079751,7.19362181,139.91,139.89,7.19800656]
[1742890081153,7.19362181,139.91,139.89,0.04980656]
[1742890081654,0.04612181,139.91,139.9,7.1478]
[1742890082549,62.0,139.95,139.93,7.1459]
[1742890083854,62.05121381,139.95,139.93,0.04602843]
[1742890084054,7.146,139.94,139.93,0.04602843]
[1742890086052,69.19661381,139.95,139.93,7.19202843]
[1742890086654,7.19661381,139.95,139.93,7.19202843]
[1742890086866,7.19661381,139.95,139.93,0.04602843]
[1742890087257,0.05121381,139.95,139.93,0.04602843]
[1742890087554,0.05121381,139.95,139.94,7.1457]
[1742890092055,0.05121381,139.95,139.93,7.19202843]
[1742890092762,0.05121381,139.95,139.93,0.04602843]
[1742890093359,7.19671381,139.95,139.93,0.04602843]
[1742890093962,7.1457,139.94,139.93,0.04602843]
[1742890096358,7.19661381,139.95,139.93,7.19222843]
[1742890099267,7.19661381,139.95,139.93,0.04602843]
[1742890099868,7.19661381,139.95,139.93,7.19222843]
[1742890100366,7.19661381,139.95,139.93,0.04602843]
[1742890100567,7.1457,139.94,139.93,0.04602843]
[1742890102665,7.19671381,139.95,139.93,0.04602843]
[1742890103664,7.19671381,139.95,139.93,7.19212843]
[1742890106267,0.05121381,139.95,139.93,7.19212843]
[1742890106972,7.19661381,139.95,139.93,0.04602843]
[1742890109274,0.05121381,139.95,139.93,7.19192843]
[1742890113776,0.05121381,139.95,139.94,7.1457]
[1742890116274,0.05121381,139.95,139.93,7.19202843]
[1742890116771,7.19661381,139.95,139.93,7.19202843]
[1742890118073,0.05121381,139.95,139.94,7.1457]
[1742890118777,7.19641381,139.95,139.93,7.19202843]
[1742890118979,0.05121381,139.95,139.93,0.04602843]
[1742890119667,0.05121381,139.95,139.93,7.19182843]
[1742890120076,0.05121381,139.95,139.93,0.04602843]
[1742890120277,0.05121381,139.95,139.94,7.1457]
[1742890124977,0.05121381,139.95,139.93,0.04602843]
[1742890126375,62.0,139.94,139.93,0.04602843]
[1742890126580,69.1457,139.94,139.93,0.04602843]
[1742890127481,62.0,139.94,139.87,390.38]
[1742890127675,87.38,139.94,139.87,25.38]
[1742890128575,7.148,139.9,139.87,32.529]
[1742890128880,7.148,139.9,139.89,0.04792015]
[1742890129978,7.1473,139.91,139.89,0.04792015]
[1742890130178,0.0460616,139.92,139.89,7.19592015]
[1742890130983,7.1930616,139.92,139.89,7.19592015]
[1742890131175,7.1930616,139.92,139.9,7.1477]
[1742890131379,0.0460616,139.92,139.9,7.1477]
[1742890132383,7.1928616,139.92,139.89,7.19602015]
[1742890132884,7.1928616,139.92,139.9,7.1476]
[1742890132885,0.0460616,139.92,139.9,7.1476]
[1742890135589,7.1928616,139.92,139.9,7.1476]
[1742890135884,0.0460616,139.92,139.9,7.1476]
[1742890142387,0.0460616,139.92,139.89,7.19592015]
[1742890142588,0.0460616,139.92,139.89,0.04792015]
[1742890143187,7.1478,139.9,139.89,0.04792015]
[1742890147796,7.1475,139.91,139.89,0.04792015]
[1742890147989,7.1475,139.91,139.89,7.19622015]
[1742890148190,0.0460616,139.92,139.89,0.04792015]
[1742890148387,0.0460616,139.92,139.91,7.1473]
[1742890160310,7.1445,139.97,139.89,49.71211953]
[1742890160512,1.9347,139.98,139.89,49.71211953]
[1742890160713,1.9347,139.98,139.89,49.66419938]
[1742890160911,7.145,139.96,139.89,49.66419938]
[1742890161412,7.145,139.96,139.94,7.1457]
[1742890161806,7.19618064,139.96,139.94,7.1457]
[1742890163217,0.05118064,139.96,139.95,7.1452]
[1742890163616,0.05118064,139.96,139.94,7.19771375]
[1742890164311,0.05118064,139.96,139.95,7.1452]
[1742890175028,0.05118064,139.96,139.94,0.05231375]
[1742890175534,7.1452,139.95,139.94,0.05231375]
[1742890175927,0.05118064,139.96,139.94,0.05231375]
[1742890177431,0.05118064,139.96,139.95,7.1452]
[1742890179737,0.90397987,139.99,139.98,7.1437]
[1742890181442,0.90397987,139.99,139.97,7.18902613]
[1742890181740,8.04747987,139.99,139.97,7.18902613]
[1742890182239,0.90397987,139.99,139.97,0.04512613]
[1742890182541,62.90397987,139.99,139.97,0.04512613]
[1742890183638,70.04757987,139.99,139.97,0.04512613]
[1742890184531,7.1437,139.98,139.97,0.04512613]